bitfinex/quotes_ETHUSD_20241212
["timestamp","ask_amount","ask_price","bid_price","bid_amount"]
[1733999201635,0.8419,3915.5,3914.4,5.55462]
[1733999201827,2.55403,3915.4,3914.5,1.79000091]
[1733999202925,0.8419,3915.5,3914.5,1.79000091]
[1733999203157,0.8093,3915.2,3914.5,1.79000091]
[1733999203321,0.8093,3915.2,3914.5,4.34458091]
[1733999203740,0.8093,3915.2,3914.7,2.55441]
[1733999203975,0.8093,3915.2,3914.8,0.43444109]
[1733999204472,0.8093,3915.2,3914.8,2.98883109]
[1733999205360,0.8071,3915.7,3915.2,2.55414]
[1733999205525,0.8071,3915.7,3915.2,2.55408]
[1733999205729,0.8071,3915.7,3915.3,2.55403]
[1733999205927,0.8071,3915.7,3915.4,0.53903197]
[1733999206179,0.625,3915.8,3915.5,2.55394]
[1733999206323,0.625,3915.8,3915.7,2.55382]
[1733999207028,0.625,3915.8,3915.5,5.3901697]
[1733999207245,0.625,3915.8,3915.7,2.55382]
[1733999207457,0.625,3915.8,3915.7,0.59291417]
[1733999207859,0.625,3915.8,3915.7,6.14673417]
[1733999208466,0.625,3915.8,3915.7,6.28333417]
[1733999210151,0.625,3915.8,3915.7,6.14673417]
[1733999210693,0.625,3915.8,3915.7,6.28333417]
[1733999212907,0.625,3915.8,3915.7,15.07333417]
[1733999213039,0.8214,3916.8,3915.8,10.58096239]
[1733999213237,0.8027,3917.4,3916.6,2.8362897]
[1733999213689,0.8027,3917.4,3916.7,3.0]
[1733999214199,3.35542,3917.4,3916.3,3.0]
[1733999214494,0.8027,3917.4,3916.3,3.0]
[1733999214639,3.35542,3917.4,3916.4,0.59728897]
[1733999215286,0.8027,3917.4,3916.4,0.59728897]
[1733999215834,0.8027,3917.4,3916.7,3.0]
[1733999217221,0.1648341,3917.5,3917.0,2.8362897]
[1733999217413,0.1648341,3917.5,3917.1,0.29728897]
[1733999218313,0.1648341,3917.5,3917.1,3.29728897]
[1733999218457,0.1648341,3917.5,3917.2,2.55281]
[1733999218659,0.1648341,3917.5,3917.1,3.29728897]
[1733999219177,0.1648341,3917.5,3915.5,4.55389]
[1733999219178,0.8435,3917.4,3916.6,2.8362897]
[1733999219370,0.8435,3917.4,3916.3,3.51474021]
[1733999219371,3.39625,3917.4,3916.3,3.51474021]
[1733999220089,0.8435,3917.4,3916.3,3.51474021]
[1733999220413,0.8435,3917.4,3916.6,2.8362897]
[1733999221771,3.39625,3917.4,3916.6,2.8362897]
[1733999222056,0.8435,3917.4,3916.7,0.34335787]
[1733999224258,0.8435,3917.4,3917.0,2.8362897]
[1733999225208,0.1648341,3917.5,3917.0,2.8362897]
[1733999225521,0.1648341,3917.5,3917.1,3.0]
[1733999225660,0.1648341,3917.5,3917.1,5.5529]
[1733999226017,0.1648341,3917.5,3917.3,0.1366]
[1733999226179,0.1648341,3917.5,3917.2,0.83891897]
[1733999226356,0.9908341,3917.5,3917.2,0.83891897]
[1733999229561,0.1648341,3917.5,3917.2,0.83891897]
[1733999232095,0.1648341,3917.5,3917.3,2.55277]
[1733999232293,0.1648341,3917.5,3917.4,6.0281686]
[1733999233330,0.1648341,3917.5,3917.4,9.0281686]
[1733999233628,0.1648341,3917.5,3917.4,9.32823327]
[1733999233775,0.1648341,3917.5,3917.4,9.0281686]
[1733999234174,0.1648341,3917.5,3917.4,9.5781686]
[1733999234438,0.1648341,3917.5,3917.4,19.16369592]
[1733999235935,0.1648341,3917.5,3917.4,15.44164148]
[1733999236220,0.1648341,3917.5,3917.4,18.27793118]
[1733999236380,0.1148341,3917.5,3917.4,18.27793118]
[1733999237413,0.1148341,3917.5,3917.4,6.4754586]
[1733999238581,0.1148341,3917.5,3917.4,9.0281686]
[1733999238700,0.1148341,3917.5,3917.4,9.5781686]
[1733999238910,0.1148341,3917.5,3917.4,9.90133118]
[1733999239126,0.1148341,3917.5,3917.4,19.02709592]
[1733999239434,0.8174,3918.8,3918.4,2.55205]
[1733999239658,0.8174,3918.8,3918.3,3.0]
[1733999239826,2.5512,3919.8,3918.3,3.0]
[1733999239827,0.7571,3919.7,3918.6,2.8362897]
[1733999239993,0.7571,3919.7,3918.7,3.0]
[1733999240197,0.7571,3919.7,3919.0,2.8362897]
[1733999240750,0.7571,3919.7,3918.7,3.0]
[1733999240902,0.7571,3919.4,3918.7,3.0]
[1733999241134,0.7571,3919.4,3918.3,3.0]
[1733999241324,0.7571,3919.1,3918.4,0.83885397]
[1733999241529,2.55182,3918.8,3918.4,0.83885397]
[1733999241710,2.55171,3919.0,3918.3,3.0]
[1733999241911,0.7571,3919.1,3918.3,3.0]
[1733999242552,0.7571,3919.1,3918.4,2.55205]
[1733999242925,0.7571,3919.1,3918.3,3.0]
[1733999243253,0.7571,3919.1,3918.3,5.55211]
[1733999243412,0.7571,3919.1,3918.4,0.83883997]
[1733999243852,0.7571,3919.1,3918.2,2.8362897]
[1733999244013,0.7571,3918.7,3918.2,2.8362897]
[1733999247464,0.7922,3918.3,3917.5,1.98660149]
[1733999247669,0.7922,3918.3,3917.5,2.8362897]
[1733999247965,0.7922,3918.3,3917.6,2.55258]
[1733999248125,0.7922,3918.3,3917.9,2.8362897]
[1733999249368,0.7922,3918.3,3917.6,3.0]
[1733999250566,2.55232,3918.0,3917.5,2.8362897]
[1733999250883,0.7922,3918.3,3917.1,2.8362897]
[1733999250884,2.55225,3918.2,3917.1,2.8362897]
[1733999251031,2.55225,3918.2,3917.2,0.28362897]
[1733999251854,0.12646298,3918.1,3917.2,0.28362897]
[1733999252077,0.7922,3918.3,3917.2,5.83645897]
[1733999252374,0.7922,3918.3,3917.4,2.5527]
[1733999252545,0.7922,3918.3,3917.5,2.8362897]
[1733999252747,0.7922,3918.3,3917.5,3.48059783]
[1733999252970,0.7922,3918.3,3917.9,2.55237]
[1733999253283,0.9157892,3918.6,3918.0,2.55232]
[1733999253431,0.7893,3918.6,3917.9,2.8362897]
[1733999253629,0.7893,3918.6,3918.0,3.0]
[1733999253872,0.7893,3918.6,3918.0,5.55226]
[1733999254360,0.7893,3918.6,3918.1,2.55223]
[1733999254759,0.7893,3918.6,3918.0,3.0]
[1733999255571,0.7893,3918.6,3918.0,2.55231]
[1733999256077,0.7893,3918.6,3917.9,0.40080518]
[1733999256666,0.7893,3918.6,3917.7,2.55251]
[1733999256864,0.7893,3918.6,3917.8,3.0]
[1733999257064,0.12656624,3918.5,3917.5,6.03323783]
[1733999257265,3.34124,3918.6,3917.6,3.0]
[1733999257503,0.12658351,3918.5,3917.6,3.0]
[1733999257711,3.34124,3918.6,3917.6,3.0]
[1733999257981,0.12658286,3918.5,3917.6,5.55257]
[1733999258197,2.55199,3918.5,3917.6,3.7856323]
[1733999259218,0.7893,3918.6,3917.6,3.7856323]
[1733999259517,0.12662965,3918.5,3917.6,6.3381823]
[1733999259701,3.34124,3918.6,3917.6,6.3381823]
[1733999260034,0.12662939,3918.5,3917.6,3.7856323]
[1733999260199,0.12662939,3918.5,3917.2,0.78833185]
[1733999260200,0.8036,3918.2,3917.2,1.06608004]
[1733999260412,2.55226,3918.1,3917.2,2.30961637]
[1733999260606,2.55226,3918.1,3917.2,1.14301662]
[1733999260805,0.8036,3918.0,3917.1,2.55288]
[1733999261008,0.8036,3918.0,3917.2,1.24402178]
[1733999261208,0.8036,3918.0,3917.1,2.55288]
[1733999261421,0.8036,3918.0,3917.2,4.24398846]
[1733999261619,0.8036,3918.0,3917.2,3.0]
[1733999261803,0.8036,3918.0,3917.2,3.37463801]
[1733999262130,0.8036,3918.0,3917.3,1.24413349]
[1733999262330,0.8036,3918.0,3917.2,3.37463801]
[1733999262535,0.8036,3918.0,3917.3,1.24424579]
[1733999262741,0.8036,3918.0,3917.2,4.14497059]
[1733999262909,0.8036,3918.0,3917.3,3.25088603]
[1733999264157,0.8036,3918.0,3917.3,0.69812603]
[1733999264738,1.06712328,3919.0,3916.8,3.06745693]
[1733999264739,2.55201,3918.5,3916.8,4.06678775]
[1733999264935,4.15341298,3919.0,3916.5,7.6868655]
[1733999264936,0.827,3917.9,3916.9,1.24460566]
[1733999265156,0.12664019,3917.8,3916.9,2.55297]
[1733999265451,0.827,3917.9,3916.5,6.98972132]
[1733999265452,0.827,3917.9,3917.0,1.24468917]
[1733999265605,0.827,3917.9,3916.8,1.06678775]
[1733999265606,0.827,3917.9,3917.1,1.24468917]
[1733999265810,0.827,3917.9,3917.4,2.55271]
[1733999266419,0.827,3917.9,3917.2,1.06678775]
[1733999266622,0.827,3917.9,3917.3,2.55273]
[1733999266821,0.827,3917.9,3917.3,3.07469994]
[1733999268053,0.827,3917.9,3917.4,2.5527]
[1733999269140,0.827,3917.9,3917.3,0.52196994]
[1733999269339,0.827,3917.9,3917.4,1.24477689]
[1733999269652,0.827,3917.9,3917.3,3.07473994]
[1733999269830,0.827,3917.9,3917.4,1.244928]
[1733999270156,0.827,3917.9,3917.3,3.07473994]
[1733999270463,0.827,3917.9,3917.4,1.2449537]
[1733999270758,0.827,3917.9,3917.3,4.14152769]
[1733999271057,0.827,3917.9,3917.4,1.2450154]
[1733999271354,0.827,3917.9,3917.3,4.14152769]
[1733999271659,0.827,3917.9,3917.4,1.24513682]
[1733999271958,0.827,3917.9,3917.3,2.55277]
[1733999272148,0.827,3917.9,3917.4,1.24519276]
[1733999272450,0.827,3917.9,3917.3,2.55277]
[1733999272681,0.827,3917.9,3917.4,1.24521789]
[1733999272869,0.827,3917.9,3917.3,2.55277]
[1733999273072,0.827,3917.9,3917.4,1.24519472]
[1733999273269,0.827,3917.9,3917.3,2.55277]
[1733999273456,0.827,3917.9,3917.4,1.24303783]
[1733999273781,0.827,3917.9,3917.3,2.55277]
[1733999273983,0.827,3917.9,3917.2,1.06678775]
[1733999273984,0.827,3917.9,3917.4,1.24307497]
[1733999274193,0.827,3917.9,3917.2,1.06678775]
[1733999274347,0.827,3917.9,3917.2,2.30987293]
[1733999274547,0.7681,3917.8,3917.2,2.30987293]
[1733999274742,0.7681,3917.8,3917.3,1.24308518]
[1733999274969,0.7681,3917.8,3917.2,1.06678775]
[1733999275848,0.8188,3917.7,3917.2,1.06678775]
[1733999276189,0.8188,3917.4,3916.9,1.06678775]
[1733999276404,3.37153,3917.4,3916.9,1.24351649]
[1733999276608,2.55284,3917.3,3916.7,1.06678775]
[1733999276769,0.8188,3917.5,3916.7,1.24344961]
[1733999277112,0.8188,3917.5,3916.6,1.06678775]
[1733999277113,0.8188,3917.4,3916.6,1.06678775]
[1733999277291,0.8188,3917.4,3916.6,3.62000775]
[1733999277476,0.8188,3917.4,3916.7,1.24345454]
[1733999277820,0.8188,3917.4,3916.7,2.31024229]
[1733999277962,0.8188,3917.4,3916.8,1.24345454]
[1733999278163,0.8188,3917.4,3916.8,0.39043134]
[1733999278403,0.8188,3917.4,3916.7,2.55316]
[1733999278607,0.8188,3917.4,3916.8,1.24311748]
[1733999278902,0.8188,3917.4,3916.7,2.55316]
[1733999279062,0.12665536,3917.3,3916.8,1.24313063]
[1733999279261,0.8188,3917.4,3916.7,2.55316]
[1733999279476,0.8188,3917.4,3916.8,1.76513376]
[1733999279672,0.8188,3917.4,3916.8,0.52201294]
[1733999280114,0.8188,3917.4,3916.8,3.07507294]
[1733999280816,0.8188,3917.4,3916.8,0.52201294]
[1733999282110,0.8188,3917.4,3916.6,1.06678775]
[1733999282268,0.12661861,3917.3,3916.7,1.24299883]
[1733999282603,0.7558,3917.2,3916.5,1.06678775]
[1733999282804,0.7558,3917.2,3916.5,1.24288561]
[1733999283119,0.7558,3917.2,3916.6,1.24288561]
[1733999284810,0.7558,3917.2,3916.5,1.07936901]
[1733999285595,3.30868,3917.2,3916.4,1.06678775]
[1733999285780,3.30868,3917.2,3916.5,1.24257633]
[1733999286003,0.7558,3917.2,3916.3,3.62020775]
[1733999286200,0.7558,3917.2,3916.4,5.30936317]
[1733999286519,0.7967,3916.2,3915.9,1.06678775]
[1733999286674,0.12409247,3916.1,3915.3,1.06678775]
[1733999286875,0.92079247,3916.0,3915.7,2.55379]
[1733999287177,0.7967,3916.0,3915.5,2.39720289]
[1733999287375,0.7967,3916.0,3915.6,1.24317022]
[1733999287579,0.7967,3916.0,3915.7,0.61943231]
[1733999289680,0.7967,3916.0,3915.3,1.06678775]
[1733999289939,0.7967,3916.0,3915.3,4.86325106]
[1733999290072,0.7967,3916.0,3915.2,3.0]
[1733999290073,0.7967,3916.0,3915.2,4.06678775]
[1733999290437,1.06712328,3917.3,3914.9,1.06678775]
[1733999290438,2.55375,3915.9,3914.9,1.06678775]
[1733999290719,2.55304,3916.9,3914.9,2.30884512]
[1733999290720,3.35845,3915.8,3914.9,2.30884512]
[1733999290922,2.55304,3916.9,3914.7,3.62124775]
[1733999290923,0.8047,3915.6,3914.7,3.62124775]
[1733999291121,0.7717,3915.5,3914.8,1.24211321]
[1733999291374,0.7717,3915.5,3915.1,2.55417]
[1733999292008,0.7717,3915.5,3915.2,2.55414]
[1733999292207,0.7717,3915.5,3914.9,3.62106775]
[1733999292439,0.7717,3915.5,3914.8,3.0]
[1733999292440,0.7717,3915.5,3915.1,2.5542]
[1733999292654,0.7717,3915.5,3915.2,0.25542]
[1733999292960,0.7717,3915.5,3915.2,2.80955]
[1733999294014,0.7717,3915.5,3915.3,2.55407]
[1733999294614,0.7717,3915.5,3915.2,0.25542]
[1733999294813,0.7717,3915.5,3915.0,3.0]
[1733999295092,0.7717,3915.5,3915.0,2.55427]
[1733999295268,0.7717,3915.5,3915.1,3.0]
[1733999296209,0.7717,3915.5,3915.1,2.55419]
[1733999297028,0.8304,3916.0,3915.2,2.55412]
[1733999297272,0.8304,3916.0,3915.3,0.255412]
[1733999301050,0.8304,3916.0,3915.0,3.0]
[1733999301263,0.8304,3916.0,3915.6,2.55386]
[1733999303149,0.8304,3916.0,3915.2,3.0]
[1733999303744,0.8304,3916.0,3915.2,2.5541]
[1733999304474,0.8304,3916.0,3914.7,1.06678775]
[1733999304475,0.7729,3915.8,3914.5,8.79]
[1733999304646,0.7729,3915.8,3914.3,1.56473275]
[1733999304647,0.8046,3915.6,3914.6,1.03547327]
[1733999304818,0.8046,3915.6,3914.8,2.55439]
[1733999305272,0.8046,3915.6,3914.3,1.56473275]
[1733999305570,0.7912,3915.5,3914.5,2.55458]
[1733999305883,0.7912,3915.5,3914.6,2.55447]
[1733999306087,0.7912,3915.5,3914.7,3.0]
[1733999306222,0.7912,3915.5,3914.7,0.555447]
[1733999306415,3.3017057,3916.5,3914.2,2.55477]
[1733999306416,2.55415,3915.2,3914.2,2.55477]
[1733999306661,0.75,3915.1,3914.2,2.55477]
[1733999306863,0.75,3915.1,3914.0,1.06678775]
[1733999306864,0.75,3915.1,3913.8,3.89564938]
[1733999307031,0.75,3915.1,3914.1,2.55485]
[1733999307215,2.55431,3915.0,3914.1,0.66161484]
[1733999307422,0.7553,3914.9,3913.9,3.0662205]
[1733999307962,0.7553,3914.9,3914.0,3.0]
[1733999308169,3.3097,3914.9,3914.0,3.0]
[1733999308339,0.7739,3914.8,3913.9,3.0662505]
[1733999308658,0.7739,3914.8,3914.0,3.0]
[1733999308820,0.7739,3914.8,3914.0,3.60662505]
[1733999309968,0.7739,3914.8,3914.0,0.60662505]
[1733999310122,0.7739,3914.8,3914.1,2.55486]
[1733999310323,0.7739,3914.8,3913.9,0.5112705]
[1733999310561,0.7739,3914.8,3914.1,2.5548]
[1733999311650,0.7739,3914.8,3913.9,5.55498]
[1733999311969,0.7739,3914.8,3913.8,2.55505]
[1733999312270,0.8149,3914.6,3913.5,3.06075455]
[1733999312427,0.8149,3914.5,3913.6,3.0]
[1733999314321,2.55468,3914.4,3913.6,3.0]
[1733999314528,0.7709,3914.3,3913.5,3.50555455]
[1733999314725,0.7709,3914.3,3913.6,2.55515]
[1733999314958,0.7709,3914.3,3913.9,2.55496]
[1733999316500,0.19556339,3915.6,3913.9,2.55496]
[1733999316501,0.8332,3914.7,3914.1,2.82886163]
[1733999316655,0.8332,3915.0,3914.7,2.55441]
[1733999317658,0.8332,3915.0,3914.4,3.0]
[1733999317856,0.8332,3915.0,3914.6,3.0]
[1733999318441,0.8332,3915.0,3914.6,5.5545]
[1733999319290,0.8332,3915.0,3914.7,2.55447]
[1733999320387,0.8332,3915.0,3914.5,0.6]
[1733999320388,0.8332,3915.0,3914.6,3.0]
[1733999320763,0.8332,3915.0,3914.6,2.55453]
[1733999320960,0.8332,3915.0,3914.7,0.3669738]
[1733999323249,0.8332,3915.0,3913.9,12.41172775]
[1733999323250,0.8332,3915.0,3914.2,5.55478]
[1733999323991,0.11749122,3914.9,3914.2,5.55478]
[1733999324290,0.8332,3915.0,3914.2,5.55478]
[1733999324492,0.11634977,3914.9,3914.2,5.55478]
[1733999324676,0.8332,3915.0,3914.2,5.55478]
[1733999324876,0.8332,3915.0,3914.3,0.60563259]
[1733999324877,0.11635125,3914.9,3914.3,0.60563259]
[1733999325048,0.8332,3915.0,3914.4,2.55465]
[1733999325246,0.8332,3915.0,3914.3,0.60563259]
[1733999325474,0.8332,3915.0,3914.6,2.5545]
[1733999326445,0.8332,3915.0,3914.3,0.60563259]
[1733999326446,0.8332,3915.0,3914.7,2.55445]
[1733999326692,0.8332,3915.0,3914.3,0.60563259]
[1733999326693,0.8332,3915.0,3914.8,0.255445]
[1733999326895,0.8332,3915.0,3914.3,0.60563259]
[1733999327045,0.8332,3915.0,3914.4,3.0]
[1733999327246,0.8332,3915.0,3914.3,0.60563259]
[1733999327598,0.11637423,3914.9,3914.3,0.60563259]
[1733999327747,0.8332,3915.0,3914.3,0.60563259]
[1733999327945,0.8332,3915.0,3914.4,3.54624719]
[1733999328251,0.8332,3915.0,3914.5,2.55458]
[1733999328471,0.8332,3915.0,3914.4,3.54624719]
[1733999329046,0.8332,3915.0,3914.4,3.0]
[1733999329394,0.8332,3915.0,3914.4,3.0083717]
[1733999329895,0.8332,3915.0,3914.4,3.0]
[1733999332188,0.8332,3915.0,3914.1,1.56833369]
[1733999332489,0.1164652,3914.9,3914.2,5.30177866]
[1733999332688,0.8332,3915.0,3914.3,5.23082453]
[1733999332926,0.8332,3915.0,3914.4,4.23499091]
[1733999333126,0.8332,3915.0,3914.4,3.0]
[1733999334892,0.8332,3915.0,3914.3,0.99583362]
[1733999335087,0.8332,3915.0,3914.4,4.06678775]
[1733999335290,0.8332,3915.0,3914.6,3.88619732]
[1733999335518,0.8332,3915.0,3914.7,1.23060463]
[1733999335713,0.8332,3915.0,3914.6,3.88619732]
[1733999335924,0.8332,3915.0,3914.7,1.23061005]
[1733999336108,0.8332,3915.0,3914.6,3.88619732]
[1733999336302,0.8332,3915.0,3914.7,1.23061013]
[1733999336587,0.8332,3915.0,3914.6,5.05003035]
[1733999336820,0.8332,3915.0,3914.7,1.23068501]
[1733999337015,0.8332,3915.0,3914.7,2.55445]
[1733999337189,0.8332,3915.0,3914.8,3.78497544]
[1733999337406,0.8332,3915.0,3914.9,0.73473235]
[1733999337934,0.26666769,3915.6,3914.9,4.36385886]
[1733999337935,0.812,3915.5,3914.9,4.36385886]
[1733999338131,0.8132,3916.2,3915.3,1.33172732]
[1733999338338,0.30316198,3916.1,3915.3,1.33172732]
[1733999338628,0.11660335,3916.0,3915.3,1.33172732]
[1733999338839,0.11660335,3915.9,3915.3,1.33172732]
[1733999339134,0.11660335,3915.8,3915.3,1.33172732]
[1733999339287,2.55356,3916.1,3915.3,1.33172732]
[1733999339489,2.55356,3916.1,3915.0,4.06678775]
[1733999339490,0.45323219,3916.0,3915.0,7.95277507]
[1733999339736,0.11655619,3915.9,3915.1,1.22854389]
[1733999339898,0.11655619,3915.8,3915.2,1.22854389]
[1733999340101,2.55356,3916.1,3915.0,7.95277507]
[1733999340406,0.11655608,3916.0,3915.1,1.22854489]
[1733999340589,0.11655399,3915.9,3915.2,1.22854489]
[1733999340793,0.11655399,3915.8,3915.0,7.95277507]
[1733999341035,0.8132,3916.2,3915.3,1.33172732]
[1733999341244,0.8132,3916.2,3915.6,1.33172732]
[1733999341402,0.11656113,3916.1,3915.6,1.33172732]
[1733999341591,0.8132,3916.2,3915.6,1.33172732]
[1733999343438,2.55331,3916.5,3915.2,1.06678775]
[1733999343439,0.7566,3915.7,3915.2,1.06678775]
[1733999343662,2.5539,3915.6,3915.0,1.06678775]
[1733999343940,0.7566,3915.4,3914.6,1.06678775]
[1733999344162,0.7566,3915.4,3914.5,1.06678775]
[1733999344163,0.7566,3915.0,3914.5,1.06678775]
[1733999344360,0.7566,3915.0,3914.2,1.06678775]
[1733999344543,0.7566,3915.0,3914.2,2.29557855]
[1733999344728,0.7566,3915.0,3914.3,1.2287908]
[1733999344929,0.7566,3915.0,3914.1,1.06678775]
[1733999345171,2.66487108,3914.9,3914.1,1.06678775]
[1733999345460,0.7566,3915.0,3914.1,2.29561367]
[1733999345658,0.11047785,3914.9,3914.2,1.22882592]
[1733999345828,0.7566,3915.0,3914.3,1.22882592]
[1733999346158,0.7566,3915.0,3914.1,3.62158775]
[1733999346372,0.11047789,3914.9,3914.2,4.8504457]
[1733999346518,0.7566,3915.0,3914.3,1.22888795]
[1733999346725,0.7566,3915.0,3914.4,2.82884142]
[1733999346930,0.7566,3915.0,3914.5,2.2956757]
[1733999347136,0.90920273,3915.7,3915.1,2.55419]
[1733999347428,0.11050241,3915.6,3914.9,6.62256323]
[1733999347618,0.7987,3915.7,3915.0,2.29517054]
[1733999347912,0.7987,3915.7,3915.1,1.22695652]
[1733999348139,0.7987,3915.7,3914.9,5.10386527]
[1733999348448,0.7987,3915.7,3915.0,1.22696844]
[1733999348650,0.7987,3915.7,3914.9,5.10386527]
[1733999348651,0.7987,3915.7,3915.1,1.22696844]
[1733999348836,0.7987,3915.7,3914.9,7.65818527]
[1733999349016,0.7987,3915.7,3915.0,2.15303391]
[1733999349224,0.7987,3915.7,3915.1,1.22719722]
[1733999349521,0.11048452,3915.6,3915.0,1.99406992]
[1733999349736,0.7987,3915.7,3915.1,1.22729669]
[1733999349964,0.7987,3915.7,3915.0,1.99406992]
[1733999350139,0.7987,3915.7,3915.4,2.554]
[1733999350333,0.7987,3915.7,3915.5,1.22734737]
[1733999350540,0.8176,3916.5,3915.6,1.22712801]
[1733999350845,0.11049279,3916.4,3915.5,2.55395]
[1733999351047,0.11049279,3916.3,3915.6,1.22714605]
[1733999351276,0.11049279,3916.3,3915.4,1.06823323]
[1733999351277,0.7739,3916.1,3915.4,1.06823323]
[1733999351432,2.66416279,3916.0,3915.1,4.06823323]
[1733999351634,0.88439279,3915.9,3915.0,4.06823323]
[1733999351838,0.11049279,3915.8,3915.1,1.22726879]
[1733999352149,0.11049279,3915.7,3915.0,3.0]
[1733999352338,3.32759,3915.9,3915.1,1.22725386]
[1733999352537,0.11043562,3915.8,3915.0,5.55424]
[1733999352770,0.7739,3915.9,3915.1,2.29541018]
[1733999353058,0.7739,3915.9,3915.2,3.0]
[1733999353563,0.7739,3915.9,3915.1,1.06823323]
[1733999353864,0.7739,3915.9,3915.1,5.2953592]
[1733999354076,1.07016722,3916.3,3915.7,3.0]
[1733999354373,0.8037,3917.0,3915.8,1.91683344]
[1733999354566,0.8037,3917.0,3916.0,2.55358]
[1733999354567,0.28714783,3916.9,3916.0,2.55358]
[1733999354740,0.11044777,3916.8,3916.0,2.55358]
[1733999354945,0.11044777,3916.7,3916.0,2.55358]
[1733999355159,0.11044777,3916.6,3916.0,2.55358]
[1733999355672,0.17670006,3916.9,3916.0,2.55358]
[1733999355827,0.11040292,3916.8,3916.0,2.55358]
[1733999356033,0.11040292,3916.7,3916.0,2.55358]
[1733999356278,0.98035071,3917.0,3916.0,2.55358]
[1733999356578,0.11037615,3916.9,3916.0,2.55358]
[1733999356871,0.11037615,3916.8,3916.1,2.55352]
[1733999357176,0.8037,3917.0,3916.2,2.55345]
[1733999357360,0.8037,3917.0,3916.0,1.06823323]
[1733999357361,0.8037,3917.0,3916.1,3.0]
[1733999357556,0.8037,3917.0,3916.4,1.06823323]
[1733999357756,0.8037,3917.0,3916.5,2.33374174]
[1733999357941,0.8037,3917.0,3916.5,3.66140827]
[1733999358559,0.8037,3917.0,3916.5,1.10813827]
[1733999358767,0.8037,3917.0,3916.3,5.55342]
[1733999359868,0.8037,3917.0,3916.4,2.55335]
[1733999362789,0.8037,3917.0,3916.3,3.0]
[1733999363077,0.8037,3917.0,3916.0,1.06823323]
[1733999363244,0.8037,3917.0,3915.8,4.06823323]
[1733999363389,0.8037,3917.0,3915.8,2.25063473]
[1733999363734,0.26656285,3917.8,3915.8,2.25063473]
[1733999363735,0.7501,3916.9,3916.0,2.55359]
[1733999363898,0.7501,3916.9,3916.1,2.55352]
[1733999365184,0.7501,3916.9,3916.4,2.82884142]
[1733999365437,0.7501,3916.9,3916.7,2.55316]
[1733999365913,0.7673,3917.3,3916.5,3.0]
[1733999366249,0.7673,3917.3,3916.8,2.55304]
[1733999366410,0.7673,3917.3,3916.6,3.49826847]
[1733999366729,0.7673,3917.3,3916.4,2.82884142]
[1733999366730,0.7673,3917.3,3916.4,3.51384518]
[1733999366942,0.7673,3917.3,3916.5,3.0]
[1733999368552,0.7815,3917.1,3916.3,3.0]
[1733999370447,0.7815,3917.1,3916.1,3.51991731]
[1733999370597,0.7815,3917.1,3916.4,2.55334]
[1733999371252,0.7808,3917.6,3916.8,2.82884142]
[1733999371398,0.7808,3917.6,3916.8,5.38192142]
[1733999371794,0.7808,3917.6,3916.8,2.55308]
[1733999372116,0.7808,3917.6,3917.4,2.55264]
[1733999372337,0.7808,3917.6,3917.2,2.82884142]
[1733999372514,0.7808,3917.6,3917.4,2.55265]
[1733999374257,0.7808,3917.6,3917.3,0.53818114]
[1733999374765,0.7808,3917.6,3916.9,3.0]
[1733999374965,0.7808,3917.6,3917.0,0.5075243]
[1733999375180,0.7808,3917.6,3917.3,2.55274]
[1733999377382,0.7808,3917.6,3917.3,2.55275]
[1733999378132,0.7808,3917.6,3917.4,2.55265]
[1733999378283,0.7808,3917.6,3917.4,2.807915]
[1733999379187,0.7808,3917.6,3917.4,0.255265]
[1733999379394,0.7808,3917.6,3917.2,2.55282]
[1733999379595,0.7808,3917.6,3917.0,0.5075243]
[1733999379750,0.7808,3917.6,3917.4,2.5527]
[1733999379953,0.7808,3917.6,3917.0,0.5075243]
[1733999379954,0.7808,3917.6,3917.1,2.5529]
[1733999380151,0.87605441,3918.4,3917.3,3.0]
[1733999380377,0.768,3918.4,3917.6,2.55256]
[1733999381382,3.32007,3918.4,3917.4,0.83817414]
[1733999382098,3.32007,3918.4,3917.4,3.39084414]
[1733999382267,0.768,3918.4,3917.5,3.0]
[1733999382471,0.10810341,3918.3,3917.5,3.0]
[1733999382672,0.768,3918.4,3917.6,0.63908441]
[1733999382862,2.6602426,3918.3,3917.6,0.63908441]
[1733999383060,2.55234,3918.0,3917.0,3.0604843]
[1733999383417,2.55248,3917.8,3916.9,3.0]
[1733999383576,0.7854,3917.7,3916.9,3.0]
[1733999383898,2.55253,3917.7,3916.9,3.0]
[1733999384099,0.89351034,3917.6,3916.8,3.0]
[1733999384268,0.89351034,3917.6,3916.5,3.0]
[1733999384269,0.7854,3917.6,3916.7,3.0]
[1733999384471,2.55239,3917.9,3916.9,3.0]
[1733999384661,0.26653858,3918.1,3917.6,3.0]
[1733999384858,0.8027,3918.6,3917.7,2.55251]
[1733999385068,0.8027,3918.6,3918.2,2.55213]
[1733999387914,0.8027,3918.6,3917.8,0.51531712]
[1733999388199,0.8027,3918.6,3917.9,0.60678371]
[1733999388404,0.10808852,3918.5,3917.8,2.55243]
[1733999388700,0.8027,3918.6,3917.6,3.51086994]
[1733999388863,0.8027,3918.6,3917.9,2.82884142]
[1733999389055,0.8027,3918.6,3917.9,5.38122142]
[1733999390188,3.35463,3918.6,3917.9,2.82884142]
[1733999390504,0.17295239,3918.9,3917.5,2.82884142]
[1733999390505,2.55207,3918.4,3917.5,2.82884142]
[1733999390706,0.8093,3918.3,3917.5,2.82884142]
[1733999390906,0.8093,3918.3,3917.3,3.06546669]
[1733999391114,0.8268,3918.2,3917.3,2.55276]
[1733999391319,0.8268,3918.2,3917.1,5.38174142]
[1733999391482,0.8268,3918.2,3917.2,6.60198613]
[1733999391679,2.55227,3918.1,3917.2,3.53817414]
[1733999391864,0.8268,3918.0,3917.2,3.53817414]
[1733999392506,2.55246,3917.8,3916.8,0.6]
[1733999392812,0.8268,3917.6,3916.7,5.38198142]
[1733999393365,0.7905,3917.5,3916.7,2.82884142]